bitfinex/quotes_ETHUSD_20260313
["timestamp","ask_amount","ask_price","bid_price","bid_amount"]
[1773386666838,0.001,2099.8,2099.4,0.49858582]
[1773386668038,0.001,2099.8,2099.5,1.68934552]
[1773386670642,0.48033208,2099.8,2099.5,1.1907597]
[1773386670965,0.001,2099.6,2099.5,1.1907597]
[1773386671143,0.48033208,2099.6,2099.3,1.763]
[1773386671315,0.48033208,2099.6,2099.3,2.9538708]
[1773386671516,0.001,2099.6,2099.3,2.9538708]
[1773386672415,0.48033208,2099.8,2099.3,2.9538708]
[1773386672416,0.001,2099.8,2099.5,1.68934552]
[1773386672615,0.001,2099.8,2099.6,0.49858582]
[1773386674538,0.001,2099.8,2099.7,1.19064628]
[1773386676963,0.001,2099.8,2099.7,2.96364628]
[1773386677417,0.001,2099.8,2099.7,3.4622321]
[1773386678248,0.48033208,2100.4,2099.8,0.49858582]
[1773386678548,0.48033208,2100.4,2099.8,0.54620939]
[1773386679439,0.48033208,2100.4,2099.9,1.19053288]
[1773386680432,0.48033208,2100.4,2100.0,0.04761903]
[1773386680627,0.48033208,2100.4,2100.1,1.775]
[1773386681446,0.48033208,2100.4,2100.1,2.96537224]
[1773386681752,0.001,2100.4,2100.2,0.49858582]
[1773386682524,0.001,2100.4,2100.1,2.96537224]
[1773386683628,0.001,2100.4,2100.1,3.46395806]
[1773386684346,0.002,2100.2,2100.1,3.46395806]
[1773386684740,0.001,2100.4,2100.2,0.48647715]
[1773386687232,0.001,2100.4,2100.3,1.19030614]
[1773386687658,0.001,2100.4,2100.3,1.67678329]
[1773386687860,0.48675424,2101.0,2100.4,0.48647715]
[1773386688062,0.48675424,2100.9,2100.4,0.48647715]
[1773386688370,0.48675424,2100.9,2100.5,1.778]
[1773386689639,0.48675424,2100.9,2100.6,1.19013615]
[1773386689948,0.48675424,2100.9,2100.5,2.96816572]
[1773386691069,0.48402787,2100.8,2100.2,0.47943587]
[1773386691236,0.48402787,2100.8,2100.2,1.1903311]
[1773386691772,0.48402787,2100.7,2100.2,1.1903311]
[1773386691975,0.48402787,2100.7,2100.2,1.66976697]
[1773386692266,0.48402787,2100.7,2100.3,1.78]
[1773386692735,0.48402787,2100.7,2100.4,0.01069782]
[1773386693937,0.48402787,2100.7,2100.4,1.20094442]
[1773386694959,0.48402787,2100.7,2100.4,0.01069782]
[1773386695452,0.48402787,2100.7,2100.4,1.20094323]
[1773386696167,2.27319908,2101.7,2101.3,0.47943587]
[1773386696333,1.18946857,2101.8,2101.4,1.78]
[1773386696533,0.48402787,2101.7,2101.5,1.781]
[1773386696760,1.67345953,2101.9,2101.5,1.781]
[1773386697747,0.48402787,2101.8,2101.5,1.781]
[1773386697952,1.67351728,2101.8,2101.5,1.781]
[1773386699760,0.48402787,2101.7,2100.8,0.47943587]
[1773386700771,0.48402787,2101.7,2101.2,0.47943587]
[1773386701081,0.48402787,2101.7,2101.3,1.781]
[1773386701291,0.48402787,2101.7,2100.8,0.47943587]
[1773386701874,0.48402787,2101.5,2100.9,1.1899662]
[1773386702261,0.48402787,2101.5,2100.8,1.18998728]
[1773386702675,0.48402787,2101.5,2100.9,1.781]
[1773386702876,0.48402787,2101.5,2101.0,0.0355532]
[1773386703977,1.67371093,2101.4,2101.1,1.782]
[1773386705067,0.48402787,2101.2,2100.6,0.001]
[1773386705457,0.48402787,2101.2,2100.6,1.19111496]
[1773386706072,1.6738808,2101.1,2100.6,1.19111496]
[1773386706492,1.6738808,2101.1,2100.7,1.783]
[1773386706990,0.48402787,2101.1,2100.7,1.783]
[1773386708090,1.67393269,2101.1,2100.7,1.783]
[1773386708762,0.48402787,2101.0,2100.7,1.783]
[1773386709189,0.48402787,2101.0,2100.8,1.784]
[1773386709758,0.48402787,2101.0,2100.4,1.19124549]
[1773386710273,0.48402787,2100.9,2100.4,1.19124549]
[1773386710587,0.48402787,2100.9,2100.4,0.001]
[1773386711392,0.48402787,2100.9,2100.5,1.785]
[1773386711887,0.48402787,2100.9,2100.6,1.785]
[1773386712087,0.48402787,2100.9,2100.4,0.001]
[1773386712288,0.48402787,2100.9,2100.6,0.001]
[1773386712485,0.48402787,2100.7,2100.6,0.001]
[1773386713795,0.48402787,2100.7,2100.6,1.787]
[1773386714183,0.48402787,2101.2,2100.6,1.787]
[1773386714385,0.48402787,2101.2,2100.7,1.19007949]
[1773386714386,1.6738682,2101.2,2100.7,1.19007949]
[1773386714599,0.0355532,2101.1,2100.7,1.19007949]
[1773386715265,1.6738682,2101.2,2100.7,1.19007949]
[1773386715666,0.48402787,2101.1,2100.6,2.97709252]
[1773386715885,0.51958107,2101.1,2100.6,2.97709252]
[1773386716193,0.51958107,2101.1,2100.7,0.02248533]
[1773386718788,1.7094838,2101.1,2100.6,2.97709252]
[1773386720207,1.7094838,2101.1,2100.6,1.787]
[1773386720208,0.48402787,2101.0,2100.6,1.787]
[1773386720376,0.48402787,2100.8,2100.4,0.001]
[1773386721395,1.67094219,2100.8,2100.4,0.001]
[1773386721601,1.70649539,2100.8,2100.4,0.001]
[1773386721802,0.48087276,2100.7,2100.5,1.788]
[1773386723206,1.19006943,2100.8,2100.5,1.788]
[1773386724006,1.67088575,2100.9,2100.5,1.788]
[1773386724818,0.48087276,2101.3,2100.7,0.001]
[1773386725001,0.002,2100.9,2100.7,0.001]
[1773386726306,0.002,2100.9,2100.7,0.49163639]
[1773386726498,1.67065838,2101.3,2100.7,0.49163639]
[1773386727410,1.67065838,2101.3,2100.7,0.001]
[1773386727411,0.51642596,2101.2,2100.7,0.001]
[1773386727611,0.51642596,2101.2,2100.8,1.789]
[1773386728310,0.48087276,2101.0,2100.7,0.001]
[1773386729413,0.48087276,2101.0,2100.8,1.789]
[1773386730602,0.0355532,2101.0,2100.8,1.789]
[1773386731715,0.51642596,2101.0,2100.8,1.789]
[1773386731902,0.51642596,2101.0,2100.7,0.001]
[1773386732416,1.70635453,2101.0,2100.7,0.001]
[1773386733215,1.70635453,2101.0,2100.8,1.79]
[1773386733520,0.45224715,2100.9,2100.5,0.001]
[1773386733821,0.0355532,2100.8,2100.6,1.791]
[1773386734290,1.64226099,2100.9,2100.6,1.791]
[1773386734918,0.45224715,2100.8,2100.6,1.791]
[1773386737418,0.45224715,2100.7,2100.5,0.001]
[1773386737603,0.45224715,2100.7,2100.6,1.792]
[1773386739985,1.64232664,2100.7,2100.6,1.792]
[1773386740295,0.45224715,2100.6,2100.5,0.001]
[1773386741015,1.67786748,2100.8,2100.5,0.001]
[1773386741220,1.64231428,2100.8,2100.5,0.001]
[1773386741385,1.64231428,2100.8,2100.6,1.793]
[1773386741788,1.67786748,2100.8,2100.6,1.793]
[1773386741988,0.45224715,2100.7,2100.6,1.793]
[1773386742614,0.45224715,2100.7,2100.5,0.001]
[1773386743525,1.19010273,2100.7,2100.5,0.001]
[1773386743823,0.45224715,2100.6,2100.5,0.001]
[1773386744120,0.45224715,2100.6,2100.5,1.794]
[1773386745419,0.45224715,2100.6,2100.2,0.001]
[1773386745624,0.49678127,2100.3,2100.2,0.001]
[1773386745831,1.68701461,2100.5,2100.2,0.001]
[1773386746949,1.68701461,2100.5,2100.3,1.793]
[1773386748926,0.49678127,2100.5,2100.3,1.793]
[1773386749125,0.53233447,2100.7,2100.3,3.46415457]
[1773386749743,0.53233447,2100.7,2100.3,3.46415961]
[1773386750054,0.53233447,2100.7,2100.3,2.27386192]
[1773386750844,1.72243863,2100.7,2100.3,2.27386192]
[1773386753652,1.72243863,2100.7,2100.5,0.001]
[1773386754360,1.72443863,2100.7,2100.5,0.001]
[1773386754749,0.49836729,2100.6,2100.5,0.001]
[1773386755247,0.0375532,2100.7,2100.5,0.001]
[1773386755449,1.22764964,2100.7,2100.5,0.001]
[1773386756841,1.72601693,2100.7,2100.5,0.001]
[1773386757057,0.49836729,2100.6,2100.3,1.794]
[1773386757733,1.68852796,2100.6,2100.3,1.794]
[1773386759663,0.49836729,2100.6,2100.3,2.29323024]
[1773386759960,1.72604274,2100.7,2100.3,1.794]
[1773386760165,0.49836729,2100.6,2100.3,1.794]
[1773386760738,1.22767545,2100.7,2100.4,0.49923024]
[1773386762049,0.49836729,2100.6,2100.3,1.794]
[1773386763576,1.22767545,2100.7,2100.4,0.49923024]
[1773386763577,0.0375532,2100.7,2100.4,0.49923024]
[1773386764341,5.26023824,2100.9,2100.6,0.49923024]
[1773386764342,0.002,2100.9,2100.6,0.49923024]
[1773386764566,0.002,2101.1,2100.8,0.49923024]
[1773386764769,0.002,2101.1,2100.9,1.789]
[1773386764965,0.49836729,2101.0,2100.9,1.789]
[1773386765673,1.19185477,2101.1,2100.9,1.789]
[1773386766043,0.002,2101.1,2100.9,1.789]
[1773386766367,1.19185787,2101.1,2100.9,1.789]
[1773386766568,0.002,2101.1,2100.9,1.789]
[1773386768243,0.50036729,2101.1,2100.9,1.789]
[1773386770182,0.49836729,2101.0,2100.9,1.789]
[1773386772392,0.002,2101.1,2100.9,1.789]
[1773386774091,0.50036729,2101.1,2100.9,1.789]
[1773386775494,0.49836729,2101.0,2100.6,1.68934432]
[1773386775794,0.49836729,2101.0,2100.6,0.49923024]
[1773386776092,0.49836729,2101.0,2100.6,1.68936515]
[1773386776697,0.49836729,2101.0,2100.7,1.83060317]
[1773386777469,1.68829383,2101.0,2100.7,1.83060317]
[1773386777669,0.49836729,2100.9,2100.7,1.783]
[1773386779100,1.69026599,2101.1,2100.8,0.001]
[1773386779299,0.002,2100.9,2100.8,0.001]
[1773386782402,0.46849191,2100.9,2100.8,0.001]
[1773386785012,0.002,2100.9,2100.8,0.001]
[1773386786808,0.46849191,2100.9,2100.8,0.001]
[1773386788908,0.002,2100.9,2100.8,0.001]
[1773386790311,0.46849191,2100.9,2100.8,0.001]
[1773386794011,0.46649191,2100.8,2100.6,0.04760544]
[1773386794216,0.46649191,2100.8,2100.3,1.19130584]
[1773386794394,1.1919662,2100.9,2100.4,0.48466094]
[1773386794790,1.65845811,2100.9,2100.4,0.48466094]
[1773386795112,0.46649191,2100.8,2100.4,0.48466094]
[1773386795307,0.46649191,2100.8,2100.5,1.782]
[1773386795510,1.19197482,2100.9,2100.6,0.48466094]
[1773386795714,0.002,2100.9,2100.6,0.48466094]
[1773386796989,0.002,2100.9,2100.6,1.67479593]
[1773386797184,0.002,2100.9,2100.7,0.48466094]
[1773386799717,0.46849191,2100.9,2100.5,3.45681135]
[1773386802718,0.46649191,2100.8,2100.5,1.782]
[1773386803524,0.46649191,2100.8,2100.5,1.82960771]
[1773386803908,0.45315278,2100.7,2100.5,1.782]
[1773386804718,0.45315278,2100.7,2100.6,0.001]
[1773386805030,0.45515278,2100.7,2100.6,0.001]
[1773386810225,0.45515278,2100.7,2100.5,1.782]
[1773386812032,1.64525,2100.7,2100.5,1.782]
[1773386812238,0.47619838,2100.6,2100.5,1.782]
[1773386815435,0.002,2100.7,2100.5,2.23581946]
[1773386815641,0.002,2100.7,2100.5,3.42601021]
[1773386815934,0.002,2100.7,2100.5,2.23581946]
[1773386816123,0.002,2100.7,2100.6,0.45381946]
[1773386817030,0.002,2100.7,2100.5,2.23581946]
[1773386818536,0.002,2100.7,2100.5,3.4260105]
[1773386819042,0.002,2100.9,2100.6,0.45381946]
[1773386819742,0.002,2100.9,2100.6,1.64395237]
[1773386820114,0.47819838,2100.9,2100.5,0.001]
[1773386820425,0.002,2100.9,2100.6,1.789]
[1773386820614,0.002,2100.9,2100.7,0.45381946]
[1773386821415,0.002,2100.9,2100.6,1.789]
[1773386821416,0.002,2101.3,2101.1,0.45381946]
[1773386821614,0.47619838,2101.8,2101.3,0.45381946]
[1773386821828,1.66571055,2101.8,2101.4,0.45381946]
[1773386822442,1.18951217,2101.8,2101.4,0.45381946]
[1773386822747,0.47619838,2101.7,2101.4,0.45381946]
[1773386823444,1.18951217,2101.8,2101.4,0.45381946]
[1773386823445,1.66571055,2101.8,2101.4,0.45381946]
[1773386823650,0.002,2101.7,2101.4,0.45381946]
[1773386827049,1.6656572,2101.8,2101.4,0.45381946]
[1773386827230,0.002,2101.7,2101.4,0.45381946]
[1773386828046,0.47819838,2101.7,2101.4,0.45381946]
[1773386828353,0.47619838,2101.6,2101.2,3.43259276]
[1773386830150,0.47619838,2101.6,2101.3,0.45381946]
[1773386830537,1.66568582,2101.8,2101.3,0.45381946]
[1773386830743,0.47619838,2101.7,2101.4,0.45481946]
[1773386830944,0.002,2101.5,2101.4,0.45481946]
[1773386832153,0.002,2101.5,2101.2,2.9787733]
[1773386832154,0.47819838,2101.5,2101.1,0.001]
[1773386832453,0.47619838,2101.3,2101.1,0.001]
[1773386833137,0.002,2101.2,2101.1,0.001]
[1773386833555,0.002,2101.2,2101.1,1.83859411]
[1773386836857,0.002,2101.2,2101.1,1.791]
[1773386837949,1.66594424,2101.3,2101.1,1.791]
[1773386838150,0.002,2101.2,2101.1,1.791]
[1773386840629,0.002,2101.2,2101.1,2.18172144]
[1773386841135,0.002,2101.2,2101.1,1.791]
[1773386841332,1.19162772,2101.5,2101.1,2.18172144]
[1773386841528,0.45833952,2101.4,2101.1,2.18172144]
[1773386842864,0.45833952,2101.4,2101.1,1.791]
[1773386843067,1.64803613,2101.4,2101.1,1.791]
[1773386844146,0.45833952,2101.4,2101.3,0.001]
[1773386844943,0.46033952,2101.4,2101.3,0.001]
[1773386846562,0.46033952,2101.4,2101.2,0.04759185]
[1773386846770,0.001,2101.3,2101.2,0.04759185]
[1773386847141,0.002,2101.5,2101.2,0.38772144]
[1773386847341,0.002,2101.5,2101.3,0.38772144]
[1773386847659,0.45833952,2102.4,2101.5,0.38772144]
[1773386847862,0.45833952,2102.1,2101.3,0.38772144]
[1773386849275,1.647683,2102.0,2101.5,0.38772144]
[1773386849569,1.647683,2102.0,2101.6,2.17972144]
[1773386850872,0.45833952,2101.9,2101.6,2.17972144]
[1773386851673,0.45833952,2101.9,2101.6,3.36926066]
[1773386851969,1.18933117,2102.1,2101.6,3.36926066]
[1773386852170,1.64767069,2102.1,2101.6,3.36926066]
[1773386852375,0.45833952,2102.0,2101.6,2.17972144]
[1773386852975,0.45833952,2102.1,2101.7,0.38772144]
[1773386853779,0.45833952,2102.0,2101.7,0.38772144]
[1773386854270,0.45833952,2102.0,2101.7,1.57723317]
[1773386854576,4.75688506,2102.3,2101.8,0.38772144]
[1773386854577,0.45833952,2102.3,2101.8,0.38772144]
[1773386854748,1.64754846,2102.3,2101.8,0.38772144]
[1773386855151,1.98806872,2102.5,2102.0,0.38772144]
[1773386855475,1.18905249,2102.6,2102.0,0.38772144]
[1773386855883,1.64733132,2102.7,2102.2,0.38772144]
[1773386856081,1.64733132,2102.7,2102.4,0.38772144]
[1773386856381,1.64725211,2102.8,2102.4,0.38772144]
[1773386859276,0.002,2102.6,2102.4,0.38772144]
[1773386861148,0.46033952,2102.6,2102.3,0.38772144]
[1773386861677,0.002,2102.6,2102.3,0.38772144]
[1773386862282,0.002,2102.6,2102.4,1.792]
[1773386862585,0.46033952,2102.6,2102.5,1.792]
[1773386862970,0.002,2102.6,2102.5,1.792]
[1773386863676,0.002,2102.6,2102.5,2.17972144]
[1773386865389,1.1023485,2102.8,2102.6,0.38772144]
[1773386865952,1.60231796,2102.8,2102.5,1.792]
[1773386866684,1.1023485,2102.8,2102.5,2.17972144]
[1773386867388,0.49996946,2103.3,2102.6,1.19271104]
[1773386867684,1.18843886,2103.6,2102.5,2.9810461]
[1773386867685,0.49996946,2103.5,2102.7,0.38772144]
[1773386867889,0.49996946,2103.5,2102.8,0.38772144]
[1773386868190,0.49996946,2103.4,2102.8,0.38772144]
[1773386869468,1.68857783,2103.3,2102.9,0.38772144]
[1773386869664,1.18859809,2103.4,2102.9,0.38772144]
[1773386870776,1.64654086,2103.4,2102.9,0.38772144]
[1773386871569,0.002,2103.2,2102.9,0.38772144]
[1773386872088,0.002,2103.2,2103.0,0.38772144]
[1773386872485,0.002,2103.2,2103.1,1.792]
[1773386873370,0.45994277,2103.2,2102.6,1.57671739]
[1773386873587,1.64860766,2103.2,2103.1,1.792]
[1773386874169,1.64860766,2103.2,2102.7,0.38772144]
[1773386874170,0.45794277,2103.1,2102.7,0.38772144]
[1773386874685,1.19069633,2103.2,2102.8,0.38772144]
[1773386875083,1.19066852,2103.2,2102.8,0.38772144]
[1773386875281,1.19066852,2103.2,2102.9,1.792]
[1773386875487,1.19066852,2103.2,2102.9,2.17972144]
[1773386875666,0.002,2103.2,2102.9,2.17972144]
[1773386877267,0.002,2103.2,2103.0,0.38772144]
[1773386878276,0.002,2103.2,2102.9,1.792]
[1773386878887,0.002,2103.2,2102.9,2.17972144]
[1773386879596,1.19066489,2103.2,2102.9,2.17972144]
[1773386879891,1.64860766,2103.2,2102.9,2.17972144]
[1773386880474,0.45994277,2103.2,2102.9,2.17972144]
[1773386880685,1.19055785,2103.4,2103.0,0.38772144]
[1773386880900,1.19055785,2103.4,2103.1,0.43527029]
[1773386881500,1.19056069,2103.4,2103.1,0.43527029]
[1773386882206,0.002,2103.4,2103.1,0.38772144]
[1773386886215,1.53474719,2104.3,2103.4,0.38772144]
[1773386886390,0.45794277,2104.2,2103.8,1.19271104]
[1773386886590,0.45794277,2104.2,2103.9,1.794]
[1773386887186,0.45794277,2104.2,2103.9,2.18172144]
[1773386887509,0.45794277,2104.4,2103.9,1.794]
[1773386888411,0.45794277,2104.4,2104.1,0.80283122]
[1773386888585,0.45794277,2104.4,2103.9,2.9788227]
[1773386888791,0.45794277,2104.4,2104.0,0.38199148]
[1773386889378,1.18804352,2104.3,2104.0,0.38199148]
[1773386889581,0.45794277,2104.9,2104.2,0.80283122]
[1773386889914,0.45794277,2104.8,2103.9,2.17599148]
[1773386890115,0.45794277,2104.4,2103.7,0.38199148]
[1773386891510,0.45794277,2104.4,2103.8,1.794]
[1773386891712,0.45794277,2104.2,2103.8,1.794]
[1773386893201,0.45794277,2104.1,2103.4,0.38199148]
[1773386893599,0.45794277,2103.9,2103.4,0.38199148]
[1773386893814,0.45794277,2103.9,2102.9,1.57082027]
[1773386894014,0.45794277,2103.7,2102.9,0.38199148]
[1773386894337,0.45794277,2103.7,2102.8,0.80383122]
[1773386894338,0.45794277,2103.5,2103.0,1.793]
[1773386895615,1.64649463,2103.4,2103.0,1.793]
[1773386895829,0.45794277,2103.3,2103.0,1.793]
[1773386897317,0.45794277,2103.3,2102.8,0.001]
[1773386897998,0.45794277,2103.1,2102.8,0.001]
[1773386898198,0.45794277,2102.9,2102.5,0.001]
[1773386898609,0.45794277,2102.9,2102.6,1.793]
[1773386899191,0.45794277,2102.9,2102.5,0.001]
[1773386900224,0.45794277,2102.7,2102.5,0.001]
[1773386901598,0.45794277,2102.7,2102.3,0.001]
[1773386902431,0.46594446,2102.5,2102.3,0.001]
[1773386902607,0.46594446,2102.5,2102.4,1.794]
[1773386902932,0.46594446,2102.5,2102.2,0.001]
[1773386903117,0.46594446,2102.3,2101.9,0.001]
[1773386903301,0.46594446,2102.3,2101.9,0.002]
[1773386904728,1.18923033,2102.2,2101.9,0.002]
[1773386904917,0.46594446,2102.1,2102.0,1.791]
[1773386906044,0.46594446,2102.0,2101.6,0.001]
[1773386906728,1.65517479,2102.2,2101.6,0.38299148]
[1773386906939,1.65517479,2102.2,2101.6,1.57253958]
[1773386907103,1.65518136,2102.2,2101.7,0.38199148]
[1773386907303,0.46594446,2102.2,2101.7,0.38199148]
[1773386907847,1.65517714,2102.2,2101.7,0.38199148]
[1773386908036,1.65517714,2102.2,2101.8,1.792]
[1773386908544,1.18923268,2102.2,2101.8,2.17399148]
[1773386909139,0.46594446,2102.3,2101.8,2.17399148]
[1773386909335,0.46594446,2102.3,2101.8,1.792]
[1773386911435,1.65516212,2102.3,2101.8,1.792]
[1773386911847,0.46594446,2102.2,2101.8,1.792]
[1773386912231,0.46594446,2102.2,2101.6,0.001]
[1773386912433,0.46594446,2102.2,2101.7,1.792]
[1773386913833,0.46594446,2102.0,2101.7,1.792]
[1773386916452,0.46594446,2101.9,2101.7,1.792]
[1773386917127,0.46594446,2101.9,2101.6,0.001]
[1773386917650,0.46594446,2102.5,2101.8,0.38299148]
[1773386918353,0.46594446,2102.3,2101.9,1.791]
[1773386918795,0.46594446,2102.2,2101.9,1.79]
[1773386919268,0.46594446,2102.2,2101.6,0.001]
[1773386920545,1.65523136,2102.1,2101.7,1.788]
[1773386920745,0.46594446,2102.0,2101.7,1.788]
[1773386923057,1.65530837,2102.0,2101.7,1.788]
[1773386925971,0.48838002,2101.9,2101.7,1.788]
[1773386927971,1.67779818,2101.9,2101.7,1.788]
[1773386928357,0.48838002,2101.9,2101.7,1.788]
[1773386928753,1.67778412,2101.9,2101.7,1.788]
[1773386929075,0.48838002,2101.9,2101.7,1.788]
[1773386929969,1.67779461,2101.9,2101.7,1.788]
[1773386930178,1.67779461,2101.9,2101.6,0.001]
[1773386930392,0.48838002,2101.8,2101.6,0.001]
[1773386930756,0.46953263,2102.0,2101.6,0.38399148]
[1773386930978,0.002,2102.1,2101.7,0.38299148]
[1773386931453,0.002,2102.1,2101.9,0.38299148]
[1773386932063,0.002,2102.1,2101.8,1.786]
[1773386932384,0.002,2102.1,2101.8,3.35843367]
[1773386932686,0.002,2102.1,2101.8,2.16899148]
[1773386933479,0.002,2102.1,2101.8,3.35844251]
[1773386937066,0.002,2102.1,2101.9,0.38299148]
[1773386937266,0.002,2102.3,2101.9,0.38099148]
[1773386937677,0.002,2102.3,2101.9,0.42856748]
[1773386937973,0.002,2102.3,2101.9,0.38099148]
[1773386938286,0.002,2102.3,2101.9,0.42856748]
[1773386938858,0.002,2102.3,2101.9,0.38099148]
[1773386939054,0.002,2102.3,2102.1,0.38099148]
[1773386939456,0.002,2102.6,2102.1,0.38099148]
[1773386940656,0.46953263,2102.5,2101.8,2.97541001]
[1773386940855,0.46953263,2102.5,2101.9,0.047576]
[1773386941084,0.46953263,2102.3,2101.9,0.047576]
[1773386941586,0.46953263,2102.3,2101.8,3.35644707]
[1773386942488,0.46953263,2102.3,2101.9,0.047576]
[1773386942901,1.65863641,2102.5,2101.9,0.42856748]
[1773386943060,1.18906461,2102.5,2102.1,0.38099148]
[1773386943260,1.65859724,2102.5,2102.1,0.42856295]
[1773386943486,1.65859724,2102.5,2102.1,0.04757147]
[1773386944697,1.65859724,2102.5,2102.0,1.18934348]
[1773386944864,0.46953263,2102.4,2102.0,1.18934348]
[1773386945388,0.002,2102.1,2102.0,1.18934348]
[1773386946608,0.002,2102.1,2101.9,0.001]
[1773386946769,0.002,2102.1,2102.0,1.787]
[1773386948487,0.002,2102.1,2102.0,3.35733496]
[1773386949162,1.19100468,2102.6,2102.1,0.48616554]
[1773386949362,1.66054408,2102.6,2102.2,1.23676649]
[1773386949586,1.66054408,2102.6,2102.1,1.67542959]
[1773386950164,0.47153263,2102.6,2102.1,1.67542959]
[1773386950388,0.002,2102.6,2102.2,0.48616554]
[1773386950589,1.65834435,2103.0,2102.3,0.48616554]
[1773386950796,0.46953263,2102.9,2102.3,0.48616554]
[1773386951012,0.46953263,2102.8,2102.2,0.04756921]
[1773386951161,0.80449259,2102.9,2102.0,6.54421487]
[1773386951162,0.46953263,2102.6,2102.0,2.97629004]
[1773386951507,0.46953263,2102.5,2102.0,3.46245558]
[1773386952166,0.46953263,2102.5,2102.0,3.46250896]
[1773386953103,0.46953263,2102.5,2102.1,0.48616554]
[1773386953271,0.46953263,2102.5,2102.0,2.97634342]
[1773386953476,1.65859425,2102.5,2102.0,2.97634342]
[1773386954307,0.46953263,2102.5,2102.0,2.97634342]
[1773386954496,0.46953263,2102.5,2102.0,3.46250896]
[1773386955086,1.65851899,2102.7,2102.1,0.48616554]
[1773386955287,1.65840842,2102.9,2102.1,0.53373701]
[1773386955590,1.65840842,2102.9,2102.3,0.48616554]
[1773386955591,0.46953263,2102.9,2102.3,0.48616554]
[1773386955785,1.65838573,2102.9,2102.3,0.48616554]
[1773386956509,0.46953263,2102.8,2102.3,0.48616554]
[1773386956726,0.46953263,2102.8,2102.3,0.53373249]
[1773386956895,0.46953263,2102.8,2102.3,0.48616554]
[1773386957910,1.18894754,2102.7,2102.3,0.48616554]
[1773386958217,0.46953263,2103.0,2102.3,1.72289572]
[1773386958403,1.19072293,2103.1,2102.4,0.48616554]
[1773386958404,0.002,2102.7,2102.4,0.48616554]
[1773386958984,0.002,2102.7,2102.5,1.791]
[1773386959920,0.002,2102.7,2102.5,2.27716554]
[1773386960118,0.002,2102.7,2102.6,1.67516963]
[1773386961503,0.002,2102.9,2102.6,1.67516963]
[1773386962022,0.002,2102.9,2102.5,2.98003286]
[1773386962023,0.48211212,2102.9,2102.5,2.98003286]
[1773386962433,0.48011212,2102.8,2102.5,1.791]
[1773386962737,0.48011212,2102.8,2102.3,1.18914897]
[1773386963593,0.48011212,2102.8,2102.4,0.03757799]
[1773386963791,0.48011212,2102.8,2102.5,1.792]
[1773386964908,0.48011212,2102.7,2102.5,1.792]
[1773386965816,0.48011212,2102.8,2102.5,1.792]
[1773386967107,0.48011212,2102.7,2102.5,1.792]
[1773386968640,0.002,2102.9,2102.5,2.98104252]
[1773386968937,0.002,2102.9,2102.7,1.18894754]
[1773386969142,0.002,2102.9,2102.6,1.68336806]
[1773386971541,0.002,2102.9,2102.6,0.0375747]
[1773386971730,0.48211212,2102.9,2102.6,0.0375747]
[1773386972116,0.48211212,2102.9,2102.5,1.792]
[1773386972345,0.48211212,2102.9,2102.5,1.793]
[1773386972711,0.002,2102.7,2102.5,1.793]
[1773386972915,0.48211212,2102.7,2102.5,1.793]
[1773386973116,1.67107979,2102.7,2102.5,1.793]
[1773386973410,0.48211212,2102.7,2102.5,1.793]
[1773386975340,0.002,2102.7,2102.5,2.9820501]
[1773386975544,0.002,2102.7,2102.5,3.43888376]
[1773386975841,0.002,2102.7,2102.5,1.793]
[1773386976025,0.48211212,2102.7,2102.5,1.793]
[1773386976835,1.67107239,2102.7,2102.5,1.793]
[1773386977236,0.48011212,2102.6,2102.5,1.793]
[1773386979946,1.66911621,2102.6,2102.5,1.793]
[1773386980242,0.48011212,2102.6,2102.5,1.793]
[1773386981141,0.48011212,2102.5,2102.3,0.001]
[1773386981448,0.48011212,2102.4,2102.3,0.001]
[1773386982323,0.48011212,2102.4,2102.3,1.796]
[1773386983921,1.66922931,2102.4,2102.3,1.796]
[1773386984124,1.66922931,2102.4,2102.1,0.001]
[1773386984518,0.47540742,2102.3,2102.1,0.001]
[1773386985038,1.66450024,2102.5,2102.1,0.45738933]
[1773386985238,1.18909282,2102.5,2102.2,0.50395854]
[1773386985445,1.18909282,2102.5,2102.2,2.29895854]
[1773386987259,1.18909282,2102.5,2102.3,0.001]
[1773386988429,1.66450024,2102.5,2102.3,0.001]
[1773386988756,0.47540742,2102.4,2102.3,0.001]
[1773386989049,0.47540742,2102.4,2102.2,1.795]
[1773386989837,0.47540742,2102.4,2102.1,0.001]
[1773386990430,1.66458118,2102.3,2102.1,0.001]
[1773386991125,1.66458118,2102.3,2102.2,1.794]
[1773386993449,1.66458118,2102.3,2102.1,0.001]
[1773386993645,1.18917376,2102.3,2102.1,0.001]
[1773386994752,1.64250505,2102.3,2102.1,0.001]
[1773386995254,0.45333129,2102.2,2102.0,0.001]
[1773386995937,1.18917376,2102.3,2101.6,0.001]
[1773386995938,0.45333129,2102.0,2101.6,0.001]
[1773386996138,0.45333129,2101.8,2101.4,0.001]
[1773386996339,0.45333129,2101.8,2101.5,1.786]
[1773386997462,1.64284454,2101.7,2101.5,1.786]
[1773386997757,0.45333129,2101.6,2101.3,0.001]
[1773386998333,1.18949985,2101.8,2101.3,0.47843902]
[1773386998525,1.18949985,2101.8,2101.5,0.47743902]
[1773386998729,1.64283114,2101.8,2101.4,0.03790817]
[1773386998926,0.45333129,2101.6,2101.1,1.57]
[1773386999127,0.45333129,2101.6,2101.1,2.04743902]
[1773386999552,1.64295774,2101.5,2101.2,1.787]
[1773387001857,1.64295774,2101.5,2101.2,1.788]
[1773387002355,0.45333129,2101.8,2101.3,0.47743902]
[1773387002566,0.45333129,2102.2,2101.3,0.47743902]
[1773387002733,0.45333129,2102.4,2101.6,0.47743902]
[1773387003064,1.19117631,2102.3,2101.6,0.47743902]
[1773387003428,1.19117631,2102.3,2101.7,1.18951325]
[1773387003632,1.19117631,2102.3,2101.8,0.47743902]
[1773387003847,1.19117631,2102.3,2101.9,2.26543902]
[1773387004046,1.19117631,2102.3,2101.9,1.788]
[1773387004361,0.45333129,2102.2,2101.9,1.788]
[1773387004663,1.25063499,2102.3,2101.9,2.26543902]
[1773387004954,0.06145868,2102.3,2102.0,0.47743902]